bitfinex-derivatives/quotes_BTCF0:USTF0_20240814
["timestamp","ask_amount","ask_price","bid_price","bid_amount"]
[1723674912922,0.00025422,59005.0,59004.0,0.084725]
[1723674913125,0.09025422,59005.0,59004.0,0.615525]
[1723674914220,0.09025422,59005.0,59004.0,0.616525]
[1723674916725,0.09025422,59005.0,59004.0,0.68392347]
[1723674917231,0.09025422,59005.0,59004.0,1.04472347]
[1723674918629,0.09025422,59005.0,59004.0,0.977325]
[1723674922425,0.09,59005.0,59004.0,2.055215]
[1723674922626,4e-05,59015.0,59014.0,0.08471]
[1723674922827,0.17004,59015.0,59014.0,0.44551]
[1723674923023,0.17004,59015.0,59014.0,0.95631]
[1723674923633,0.17004,59015.0,59014.0,1.02370962]
[1723674923832,0.17004,59015.0,59014.0,0.95731]
[1723674924425,0.17004,59015.0,59014.0,1.02570507]
[1723674924626,0.17004,59015.0,59014.0,0.95831]
[1723674925425,0.17004,59015.0,59014.0,1.46667]
[1723674927040,0.17004,59015.0,59014.0,0.95831]
[1723674928127,0.17004,59015.0,59014.0,1.02575944]
[1723674928329,0.17004,59015.0,59014.0,0.95831]
[1723674929629,0.17004,59015.0,59014.0,1.02575944]
[1723674929825,0.17004,59015.0,59014.0,0.95831]
[1723674930237,0.17004,59015.0,59014.0,1.02576892]
[1723674931234,0.084713,59012.0,59011.0,0.05060996]
[1723674931434,0.084713,59012.0,59009.0,0.00025422]
[1723674931435,0.169432,59010.0,59009.0,0.00025422]
[1723674931643,0.169432,59010.0,58999.0,0.3608]
[1723674931644,0.084731,59000.0,58999.0,0.3608]
[1723674931935,0.084732,58999.0,58990.0,0.05064261]
[1723674932234,0.084746,58989.0,58988.0,0.05064261]
[1723674932433,0.084748,58988.0,58986.0,0.05064261]
[1723674932636,0.244748,58988.0,58986.0,0.05064261]
[1723674933333,0.244748,58988.0,58985.0,0.05064261]
[1723674933535,0.244748,58988.0,58984.0,0.084753]
[1723674933536,0.244748,58988.0,58984.0,0.13539561]
[1723674933725,0.244748,58988.0,58984.0,0.084753]
[1723674934132,0.16,58988.0,58983.0,0.41144261]
[1723674935133,0.16,58988.0,58987.0,0.084749]
[1723674935941,0.16,58988.0,58983.0,0.445555]
[1723674936138,0.16,58988.0,58984.0,0.084753]
[1723674937237,0.16,58988.0,58984.0,0.446553]
[1723674937442,0.16,58988.0,58985.0,0.084751]
[1723674937640,0.16,58988.0,58987.0,0.084749]
[1723674939834,0.162,58988.0,58987.0,0.084749]
[1723674940232,0.162,58988.0,58985.0,0.001]
[1723674940439,0.164,58988.0,58984.0,0.3608]
[1723674941141,0.248748,58988.0,58984.0,0.445553]
[1723674941341,0.248748,58988.0,58984.0,0.615553]
[1723674941642,0.246748,58988.0,58985.0,0.001]
[1723674941841,0.246748,58988.0,58985.0,0.245751]
[1723674942234,0.084749,58987.0,58985.0,0.245751]
[1723674942433,0.244749,58987.0,58985.0,0.245751]
[1723674943136,0.244749,58987.0,58985.0,0.244751]
[1723674944042,0.16,58987.0,58986.0,0.084751]
[1723674944233,0.16,58987.0,58986.0,0.244751]
[1723674945841,0.161,58987.0,58986.0,0.244751]
[1723674951045,0.084756,58982.0,58981.0,0.00025422]
[1723674951238,0.244756,58982.0,58973.0,0.445568]
[1723674951439,0.084768,58974.0,58973.0,0.5308]
[1723674951735,0.244768,58974.0,58973.0,0.5308]
[1723674951941,0.244768,58974.0,58973.0,0.3608]
[1723674953354,0.245768,58974.0,58973.0,0.3708]
[1723674953542,0.161,58974.0,58973.0,0.3838]
[1723674953844,0.161,58974.0,58973.0,0.5238]
[1723674954038,0.161,58974.0,58973.0,0.5108]
[1723674954239,0.162,58974.0,58973.0,0.5198]
[1723674955248,0.162,58974.0,58973.0,0.604569]
[1723674959743,0.15949156,58974.0,58973.0,0.894638]
[1723674960344,0.15949156,58974.0,58973.0,0.97888753]
[1723674961148,0.00025422,58979.0,58978.0,0.169524]
[1723674961449,0.05073951,58994.0,58993.0,0.084741]
[1723674961647,0.21073951,58994.0,58993.0,0.605541]
[1723674961841,0.21073951,58994.0,58993.0,0.67313316]
[1723674961842,0.16,58994.0,58993.0,0.67313316]
[1723674962754,0.174,58994.0,58993.0,0.67413316]
[1723674962952,0.174,58994.0,58993.0,0.5218]
[1723674963146,0.181,58994.0,58993.0,0.5228]
[1723674963645,0.181,58994.0,58993.0,0.65821011]
[1723674963845,0.181,58994.0,58993.0,0.607541]
[1723674964051,0.167,58994.0,58993.0,0.607541]
[1723674964643,0.16,58994.0,58993.0,0.608541]
[1723674964957,0.16,58994.0,58993.0,0.67613316]
[1723674965544,0.16,58994.0,58993.0,0.608541]
[1723674965745,0.16,58994.0,58993.0,0.67613316]
[1723674966167,0.16,58994.0,58993.0,0.608541]
[1723674968552,0.244739,58994.0,58993.0,0.608541]
[1723674970058,0.16,58994.0,58993.0,0.608541]
[1723674972969,0.16,58994.0,58993.0,0.693282]
[1723674974053,0.14812904,58994.0,58993.0,1.686543]
[1723674974256,0.00025422,58999.0,58998.0,0.084733]
[1723674974455,0.16025422,58999.0,58998.0,0.65294749]
[1723674974655,0.16025422,58999.0,58998.0,1.16142749]
[1723674974852,0.16025422,58999.0,58998.0,1.094013]
[1723674975365,0.16025422,58999.0,58998.0,1.24616049]
[1723674975560,0.16425422,58999.0,58998.0,1.24616049]
[1723674975754,0.16425422,58999.0,58998.0,0.65294749]
[1723674975955,0.16925422,58999.0,58998.0,0.585533]
[1723674976656,0.16425422,58999.0,58998.0,0.585533]
[1723674976861,0.16425422,58999.0,58998.0,0.63607898]
[1723674977058,0.16025422,58999.0,58998.0,1.095013]
[1723674977261,0.16025422,58999.0,58998.0,0.65389133]
[1723674977461,0.16025422,58999.0,58998.0,0.65388904]
[1723674977864,0.16025422,58999.0,58998.0,0.586533]
[1723674979370,0.16025422,58999.0,58998.0,0.5018]
[1723674979567,1.27403422,58999.0,58993.0,0.3608]
[1723674979866,0.084746,58989.0,58988.0,0.00025422]
[1723674980070,1.053352,58989.0,58988.0,0.00025422]
[1723674980363,0.084749,58987.0,58986.0,0.3608]
[1723674980562,0.254749,58987.0,58986.0,0.3608]
[1723674980765,0.6786,58987.0,58981.0,0.084757]
[1723674980969,0.17,58987.0,58981.0,0.084757]
[1723674981165,0.17,58987.0,58979.0,0.3608]
[1723674981763,0.17,58987.0,58979.0,0.44556]
[1723674982367,0.17,58987.0,58979.0,0.45256]
[1723674982368,0.171,58987.0,58979.0,0.45256]
[1723674983766,0.084758,58981.0,58979.0,0.45256]
[1723674983971,0.084758,58981.0,58979.0,0.45956]
[1723674984266,0.1172,58980.0,58979.0,0.45956]
[1723674984573,0.2872,58980.0,58979.0,0.45956]
[1723674984871,0.2872,58980.0,58979.0,0.45256]
[1723674985060,0.371959,58980.0,58979.0,0.45956]
[1723674985260,0.371959,58980.0,58979.0,0.3748]
[1723674985467,1.398599,58980.0,58979.0,0.007]
[1723674985665,0.084772,58971.0,58964.0,0.05069157]
[1723674985969,0.290081,58965.0,58964.0,0.00018141]
[1723674986169,0.460081,58965.0,58964.0,0.00018141]
[1723674986472,0.084788,58960.0,58959.0,0.3608]
[1723674986767,0.254788,58960.0,58959.0,0.3608]
[1723674987178,0.17,58960.0,58959.0,0.445589]
[1723674988270,0.17,58960.0,58959.0,0.451589]
[1723674988271,0.171,58960.0,58959.0,0.451589]
[1723674989278,0.172,58960.0,58959.0,0.457589]
[1723674989883,0.172,58960.0,58959.0,0.627589]
[1723674990885,0.002,58960.0,58959.0,0.712378]
[1723674991084,0.002,58960.0,58959.0,1.221218]
[1723674991282,0.002,58960.0,58959.0,0.627589]
[1723674991784,0.002,58960.0,58959.0,0.63791982]
[1723674992291,0.002,58960.0,58959.0,1.23154882]
[1723674992476,0.002,58960.0,58959.0,0.72270882]
[1723674993284,0.002,58960.0,58959.0,0.63791982]
[1723674993484,0.002,58960.0,58959.0,0.72270882]
[1723674993679,0.002,58960.0,58959.0,0.63791982]
[1723674993983,0.002,58960.0,58959.0,0.72270882]
[1723674995096,0.002,58960.0,58959.0,1.63154882]
[1723674995284,0.00038476,58965.0,58964.0,0.084782]
[1723674995483,0.00038476,58965.0,58964.0,0.585582]
[1723674995677,0.00038476,58965.0,58964.0,0.985582]
[1723674996088,0.00038476,58965.0,58964.0,1.494382]
[1723674997086,0.00038476,58965.0,58964.0,1.094382]
[1723674997287,0.08038476,58965.0,58964.0,1.094382]
[1723674998087,0.08025422,58965.0,58964.0,1.179164]
[1723674998291,0.8605,58984.0,58964.0,1.094382]
[1723674998499,0.62,58983.0,58975.0,0.3608]
[1723674998687,0.62,58983.0,58979.0,0.08476]
[1723674998887,0.62,58983.0,58975.0,0.3608]
[1723674998888,0.084757,58982.0,58975.0,0.3608]
[1723674999090,0.16,58982.0,58977.0,0.084763]
[1723674999386,5.087e-05,58981.0,58980.0,0.084759]
[1723674999586,0.15005087,58981.0,58980.0,0.084759]
[1723675000701,0.15005087,58981.0,58976.0,0.084764]
[1723675000892,0.15005087,58981.0,58977.0,0.084763]
[1723675001094,0.15005087,58981.0,58978.0,0.084762]
[1723675001288,0.15105087,58981.0,58978.0,0.084762]
[1723675001900,0.15105087,58981.0,58979.0,0.084761]
[1723675002091,0.15105087,58981.0,58980.0,0.084759]
[1723675002899,0.15005087,58981.0,58980.0,0.084759]
[1723675003796,0.15105087,58981.0,58980.0,0.084759]
[1723675004199,0.15205087,58981.0,58980.0,0.084759]
[1723675005806,0.15205087,58981.0,58980.0,0.254759]
[1723675007300,0.15105087,58981.0,58980.0,0.255759]
[1723675007804,0.15005087,58981.0,58980.0,0.256759]
[1723675014205,0.15005087,58981.0,58980.0,0.258759]
[1723675014407,0.15005087,58981.0,58980.0,0.261759]
[1723675017204,0.20068767,58981.0,58980.0,0.261759]
[1723675018207,0.15005087,58981.0,58980.0,0.261759]
[1723675019110,0.15005087,58981.0,58980.0,0.31226916]
[1723675019611,0.15005087,58981.0,58980.0,0.261759]
[1723675019808,0.15005087,58981.0,58980.0,0.31226916]
[1723675020212,0.21760386,58981.0,58980.0,0.31226916]
[1723675020514,0.21760386,58981.0,58980.0,0.30526916]
[1723675020715,0.21760386,58981.0,58980.0,0.31226916]
[1723675021117,0.21760386,58981.0,58980.0,0.261759]
[1723675022314,0.21760386,58981.0,58980.0,0.32909583]
[1723675022713,0.21760386,58981.0,58980.0,0.41385483]
[1723675022913,0.15005087,58981.0,58980.0,0.707318]
[1723675023213,0.15005087,58981.0,58980.0,0.77342955]
[1723675025321,0.15005087,58981.0,58980.0,1.13422955]
[1723675025515,0.15005087,58981.0,58980.0,1.64286955]
[1723675025716,0.15005087,58981.0,58980.0,2.14425779]
[1723675026225,0.15005087,58981.0,58980.0,1.74425779]
[1723675026526,0.15005087,58981.0,58980.0,1.64286955]
[1723675027023,0.15005087,58981.0,58980.0,2.04286955]
[1723675027414,0.15005087,58981.0,58980.0,2.04163128]
[1723675028719,0.15005087,58981.0,58980.0,1.64163128]
[1723675028913,0.15005087,58981.0,58980.0,2.04163128]
[1723675029718,0.15005087,58981.0,58980.0,1.04823228]
[1723675030619,0.15005087,58981.0,58980.0,1.13299128]
[1723675031018,0.15005087,58981.0,58980.0,1.04823228]
[1723675031615,0.15005087,58981.0,58980.0,1.13299128]
[1723675032017,0.15005087,58981.0,58980.0,1.64166991]
[1723675032315,0.15005087,58981.0,58980.0,1.04827091]
[1723675032917,0.23480887,58981.0,58980.0,0.007]
[1723675033118,0.23480887,58981.0,58980.0,0.05771912]
[1723675033309,0.28561811,58981.0,58980.0,0.007]
[1723675034222,0.084768,58974.0,58973.0,0.00025422]
[1723675034427,0.93637613,58974.0,58973.0,0.00025422]
[1723675034722,0.93637613,58974.0,58964.0,0.084782]
[1723675034723,0.084777,58968.0,58967.0,0.05071912]
[1723675034926,0.254777,58968.0,58966.0,0.05071912]
[1723675035227,0.254777,58968.0,58967.0,0.3608]
[1723675036715,0.17,58968.0,58967.0,0.445578]
[1723675036917,0.171,58968.0,58967.0,0.445578]
[1723675037121,0.171,58968.0,58967.0,0.49629712]
[1723675037620,0.171,58968.0,58967.0,0.605578]
[1723675038225,0.173,58968.0,58967.0,0.719778]
[1723675038422,0.173,58968.0,58967.0,0.3608]
[1723675038615,0.257777,58968.0,58967.0,0.3608]
[1723675039827,0.490177,58968.0,58967.0,0.3608]
[1723675041321,0.490177,58968.0,58967.0,0.445578]
[1723675041717,0.173,58968.0,58967.0,0.445578]
[1723675044226,0.173,58968.0,58967.0,0.595578]
[1723675046739,0.172,58968.0,58967.0,0.600578]
[1723675046921,0.256777,58968.0,58967.0,0.5158]
[1723675048127,0.256777,58968.0,58967.0,0.5198]
[1723675048128,0.254777,58968.0,58967.0,0.5198]
[1723675048628,0.254777,58968.0,58967.0,0.5148]
[1723675048829,0.254777,58968.0,58967.0,0.5178]
[1723675049432,0.254777,58968.0,58967.0,0.5148]
[1723675049831,0.254777,58968.0,58967.0,0.5118]
[1723675050136,0.254777,58968.0,58967.0,0.597578]
[1723675051023,0.254777,58968.0,58965.0,0.23]
[1723675051024,0.084781,58965.0,58964.0,0.05064618]
[1723675051227,0.16005087,58965.0,58962.0,0.00025422]
[1723675051423,0.2053,58963.0,58962.0,0.00025422]
[1723675051629,0.3553,58963.0,58962.0,0.00025422]
[1723675051824,0.440084,58963.0,58962.0,0.00025422]
[1723675052026,0.440084,58963.0,58962.0,0.08503922]
[1723675052821,0.15,58963.0,58962.0,0.23803922]
[1723675053021,0.15,58963.0,58962.0,0.24103922]
[1723675053930,0.15,58963.0,58962.0,0.09103922]
[1723675054242,0.234784,58963.0,58962.0,0.09103922]
[1723675054430,1.348884,58963.0,58962.0,0.00625422]
[1723675054641,1.6249,58963.0,58953.0,0.05063541]
[1723675054837,0.5661,58956.0,58953.0,0.17]
[1723675055025,0.2309,58955.0,58951.0,0.084801]
[1723675055230,0.084799,58953.0,58951.0,0.224801]
[1723675055427,0.244799,58953.0,58951.0,0.224801]
[1723675055730,0.244799,58953.0,58952.0,0.0848]
[1723675055937,0.244799,58953.0,58952.0,0.2548]
[1723675057243,0.245799,58953.0,58952.0,0.2548]
[1723675057437,0.245799,58953.0,58952.0,0.2448]
[1723675058538,0.247799,58953.0,58952.0,0.2448]
[1723675059040,0.248799,58953.0,58952.0,0.2448]
[1723675059940,0.247799,58953.0,58952.0,0.2448]
[1723675061342,0.246799,58953.0,58952.0,0.16]
[1723675062039,0.245799,58953.0,58952.0,0.16]
[1723675062239,0.246799,58953.0,58952.0,0.16]
[1723675062440,0.246799,58953.0,58952.0,0.161]
[1723675063039,0.164,58953.0,58952.0,0.6904]
[1723675063434,0.162,58953.0,58952.0,1.19928]
[1723675063738,0.163,58953.0,58952.0,1.26689801]
[1723675064141,0.163,58953.0,58952.0,0.67321801]
[1723675064347,0.161,58953.0,58952.0,0.67321801]
[1723675065240,0.162,58953.0,58952.0,0.68221801]
[1723675065633,0.161,58953.0,58952.0,0.68221801]
[1723675065833,0.162,58953.0,58952.0,0.68721801]
[1723675066043,0.162,58953.0,58952.0,0.6196]
[1723675066743,0.162,58953.0,58952.0,0.6216]
[1723675070542,0.162,58953.0,58952.0,0.2608]
[1723675070841,0.162,58953.0,58952.0,0.6216]
[1723675074345,0.162,58953.0,58952.0,0.6206]
[1723675075547,0.162,58953.0,58952.0,0.7841136]
[1723675075956,0.162,58953.0,58952.0,0.6206]
[1723675077050,0.162,58953.0,58952.0,0.78423605]
[1723675078553,0.162,58953.0,58952.0,0.69973252]
[1723675081350,0.162,58953.0,58952.0,0.61493252]
[1723675081562,0.246798,58953.0,58952.0,0.17876038]
[1723675081746,0.246798,58953.0,58946.0,0.36105422]
[1723675081747,0.084802,58950.0,58946.0,0.00025422]
[1723675081943,0.084815,58941.0,58937.0,0.08462786]
[1723675082147,0.084815,58941.0,58935.0,0.00019079]
[1723675082148,0.084823,58936.0,58935.0,0.00019079]
[1723675082349,0.22487387,58936.0,58935.0,0.06787729]
[1723675082651,0.22487387,58936.0,58935.0,0.00019079]
[1723675083547,0.14005087,58936.0,58935.0,0.08501479]
[1723675084255,0.14305087,58936.0,58935.0,0.08501479]
[1723675084455,0.14605087,58936.0,58935.0,0.08501479]
[1723675085853,0.14405087,58936.0,58935.0,0.08501479]
[1723675086961,0.14005087,58936.0,58935.0,0.08501479]
[1723675087151,0.14105087,58936.0,58935.0,0.08501479]
[1723675087353,1e-08,58941.0,58940.0,0.084817]
[1723675087667,0.3216,58956.0,58941.0,0.084815]
[1723675087962,0.4816,58956.0,58951.0,0.3608]
[1723675088158,0.4816,58956.0,58952.0,0.084799]
[1723675088757,0.4816,58956.0,58951.0,0.3608]
[1723675089066,0.4816,58956.0,58954.0,0.084797]
[1723675089263,0.16,58956.0,58954.0,0.084797]
[1723675089749,0.188,58956.0,58954.0,0.084797]
[1723675090153,0.188,58956.0,58955.0,0.084795]
[1723675090357,0.174,58956.0,58955.0,0.084795]
[1723675090555,0.16,58956.0,58955.0,0.084795]
[1723675092259,0.161,58956.0,58955.0,0.084795]
[1723675092660,0.162,58956.0,58955.0,0.084795]
[1723675094558,0.162,58956.0,58954.0,0.084796]
[1723675094955,0.161,58956.0,58955.0,0.084795]
[1723675095363,0.16,58956.0,58955.0,0.084795]
[1723675096563,0.16,58956.0,58955.0,0.445595]
[1723675096765,0.16,58956.0,58955.0,0.446595]
[1723675097669,0.16,58956.0,58955.0,0.606595]
[1723675098671,0.16,58956.0,58955.0,0.245795]
[1723675098867,0.16,58956.0,58955.0,0.606595]
[1723675103473,0.06740422,58956.0,58955.0,0.776185]
[1723675103664,0.06740422,58956.0,58955.0,0.78626468]
[1723675103857,0.00025444,58960.0,58959.0,0.084789]
[1723675104063,0.10025444,58960.0,58959.0,0.244789]
[1723675104367,0.10025444,58960.0,58959.0,0.31232591]
[1723675104566,0.10025444,58960.0,58959.0,0.244789]
[1723675105161,0.10425444,58960.0,58959.0,0.244789]
[1723675105469,0.10725444,58960.0,58959.0,0.244789]
[1723675105667,0.10725444,58960.0,58959.0,0.29542704]
[1723675105863,0.10725444,58960.0,58959.0,0.244789]
[1723675106070,0.10725444,58960.0,58959.0,0.31231647]
[1723675106871,0.10425444,58960.0,58959.0,0.244789]
[1723675107474,0.10425444,58960.0,58959.0,0.31228221]
[1723675107770,0.10025444,58960.0,58959.0,0.31228221]
[1723675107960,0.10025444,58960.0,58959.0,0.245789]
[1723675111870,0.10125444,58960.0,58959.0,0.247789]
[1723675112267,0.10125444,58960.0,58959.0,0.31526136]
[1723675112575,0.10125444,58960.0,58959.0,0.248789]
[1723675112872,0.10225444,58960.0,58959.0,0.251789]
[1723675113072,0.10225444,58960.0,58959.0,0.254789]
[1723675113380,0.10225444,58960.0,58959.0,0.257789]
[1723675115377,0.10225444,58960.0,58959.0,0.41352138]
[1723675115570,0.10225444,58960.0,58959.0,0.41368252]
[1723675116374,0.10225444,58960.0,58959.0,0.51507076]
[1723675116574,0.10225444,58960.0,58959.0,0.43028176]
[1723675116871,0.10225444,58960.0,58959.0,0.51507076]
[1723675117174,0.10225444,58960.0,58959.0,0.41368252]
[1723675118970,0.10225444,58960.0,58959.0,1.13528252]
[1723675119173,0.02321032,58960.0,58959.0,2.12891152]
[1723675119474,0.002,58960.0,58959.0,1.81307442]
[1723675120668,4.4e-07,58965.0,58964.0,0.339128]
[1723675120983,0.3216,58986.0,58985.0,0.084752]
[1723675121275,0.3216,58986.0,58985.0,0.445552]
[1723675121276,0.16,58986.0,58985.0,0.445552]
[1723675122269,0.174,58986.0,58985.0,0.445552]
[1723675122774,0.188,58986.0,58985.0,0.445552]
[1723675123376,0.192,58986.0,58985.0,0.445552]
[1723675123883,0.192,58986.0,58985.0,0.45551618]
[1723675124277,0.182,58986.0,58985.0,0.45551618]
[1723675124483,0.182,58986.0,58985.0,0.50610813]
[1723675125282,0.00252,59001.0,59000.0,0.084731]
[1723675125489,0.03,59007.0,59006.0,0.084722]
[1723675125687,4e-05,59015.0,59014.0,0.08471]
[1723675125893,0.16004,59015.0,59013.0,0.3608]
[1723675126989,0.16004,59015.0,59013.0,0.445512]
[1723675127188,0.17404,59015.0,59013.0,0.446512]
[1723675127390,0.17404,59015.0,59013.0,0.45671347]
[1723675127582,0.17404,59015.0,59014.0,0.08471]
[1723675128289,0.18804,59015.0,59014.0,0.08471]
[1723675128885,0.17404,59015.0,59014.0,0.08471]
[1723675129087,0.01404,59015.0,59014.0,0.23671]
[1723675129297,0.01404,59015.0,59014.0,0.08671]
[1723675129492,0.01404,59015.0,59014.0,0.24671]
[1723675136494,0.01404,59015.0,59014.0,0.60751]
[1723675139091,0.12404,59015.0,59014.0,0.60751]
[1723675143786,0.12404,59015.0,59014.0,0.5228]
[1723675143989,1.0324,59015.0,59004.0,0.3608]
[1723675144190,0.2053,59005.0,58994.0,0.3608]
[1723675144394,0.2053,59005.0,58999.0,0.084732]
[1723675144395,0.16,59005.0,58999.0,0.084732]
[1723675144796,0.16,59005.0,59002.0,0.3608]
[1723675144996,0.3608,59003.0,58994.0,0.3608]
[1723675145196,0.5208,59003.0,58994.0,0.5108]
[1723675145390,0.084732,59000.0,58998.0,0.00025421]
[1723675145594,0.2142,58999.0,58998.0,0.00025421]
[1723675145799,0.3642,58999.0,58998.0,0.00025421]
[1723675146696,0.448932,58999.0,58998.0,0.00025421]
[1723675148002,0.449932,58999.0,58998.0,0.00025421]
[1723675151902,0.449932,58999.0,58978.0,0.00017897]
[1723675151903,1.443144,58999.0,58987.0,0.05049119]
[1723675152096,1.443144,58999.0,58983.0,0.3608]
[1723675152097,0.084754,58984.0,58983.0,0.3608]
[1723675152297,0.234754,58984.0,58983.0,0.3608]
[1723675153197,0.744354,58984.0,58983.0,0.3628]
[1723675154324,0.235754,58984.0,58983.0,0.3628]
[1723675154602,0.151,58984.0,58983.0,0.447555]
[1723675154909,0.15,58984.0,58983.0,0.446555]
[1723675155200,0.155,58984.0,58983.0,0.445555]
[1723675155408,0.159,58984.0,58983.0,0.445555]
[1723675156796,0.159,58984.0,58983.0,0.69031]
[1723675157003,0.00025421,58989.0,58988.0,0.084748]
[1723675157207,0.510325,59004.0,58990.0,0.2053]
[1723675157401,0.084728,59002.0,59001.0,0.3608]
[1723675157708,0.244728,59002.0,59001.0,0.3608]
[1723675158705,0.248728,59002.0,59001.0,0.3608]
[1723675159206,0.253728,59002.0,59001.0,0.3608]
[1723675160503,0.169,59002.0,59001.0,0.615529]
[1723675164505,0.169,59002.0,59001.0,0.6253843]
[1723675164709,0.169,59002.0,59001.0,0.4553843]
[1723675165104,0.169,59002.0,59001.0,0.445529]
[1723675166811,0.169,59002.0,59001.0,0.585529]
[1723675167702,0.169,59002.0,58996.0,0.08499021]
[1723675167909,0.084734,58998.0,58996.0,0.08499021]
[1723675168108,0.16,58998.0,58997.0,0.084735]
[1723675169915,0.16,58998.0,58997.0,0.085735]
[1723675173606,0.244733,58998.0,58997.0,0.085735]
[1723675173818,0.244733,58998.0,58997.0,0.27638007]
[1723675174021,0.244733,58998.0,58997.0,0.225735]
[1723675176111,0.244733,58998.0,58997.0,0.27637725]
[1723675176317,0.244733,58998.0,58997.0,0.19164225]
[1723675177922,0.244733,58998.0,58997.0,0.27637725]
[1723675178817,0.244733,58998.0,58997.0,0.141]
[1723675179216,0.329466,58998.0,58997.0,0.141]
[1723675180425,0.329466,58998.0,58997.0,0.001]
[1723675183112,0.244733,58998.0,58997.0,0.085735]
[1723675183317,0.16,58998.0,58997.0,0.245735]
[1723675184528,0.3608,59013.0,59006.0,0.084722]
[1723675184719,0.06025421,59007.0,59006.0,0.595522]
[1723675185232,0.06025421,59007.0,59006.0,0.60574863]
[1723675185924,0.06925421,59007.0,59006.0,0.69121675]
[1723675186425,0.06925421,59007.0,59006.0,0.67436396]
[1723675186929,0.06925421,59007.0,59006.0,0.60674863]
[1723675187228,0.07925421,59007.0,59006.0,0.60674863]
[1723675187624,0.16397421,59007.0,59006.0,0.3618]
[1723675187921,0.16397421,59007.0,59006.0,0.42941079]
[1723675188124,0.084726,59003.0,59001.0,0.05072059]
[1723675188323,0.084726,59003.0,58999.0,0.05072059]
[1723675188324,0.084731,59000.0,58999.0,0.05072059]
[1723675188530,0.084732,58999.0,58998.0,0.05072059]
[1723675188723,0.084736,58996.0,58994.0,0.05074003]
[1723675188923,0.084742,58992.0,58991.0,0.05074003]
[1723675189127,0.084743,58991.0,58989.0,0.05074003]
[1723675189333,0.084745,58990.0,58989.0,0.05074003]
[1723675189619,0.084746,58989.0,58988.0,0.05074003]
[1723675189820,0.244746,58989.0,58986.0,0.15236749]
[1723675190122,0.244746,58989.0,58987.0,0.084748]
[1723675190822,0.244746,58989.0,58988.0,0.05071917]
[1723675193336,0.245746,58989.0,58988.0,0.05071917]
[1723675195923,0.245746,58989.0,58988.0,0.41151917]
[1723675196125,0.245746,58989.0,58988.0,0.41149511]
[1723675196319,0.244746,58989.0,58988.0,0.41149511]
[1723675196530,0.244746,58989.0,58988.0,0.3608]
[1723675196723,0.244746,58989.0,58988.0,0.41149401]
[1723675197122,0.245746,58989.0,58988.0,0.445548]
[1723675198530,0.245746,58989.0,58988.0,0.49624201]
[1723675198727,0.245746,58989.0,58988.0,0.63624201]
[1723675200531,0.161,58989.0,58988.0,0.65316549]
[1723675201922,0.161,58989.0,58988.0,0.65616549]
[1723675202321,0.161,58989.0,58988.0,0.74091349]
[1723675202627,0.16,58989.0,58988.0,0.673296]
[1723675202828,0.16,58989.0,58988.0,0.588548]
[1723675203234,0.16,58989.0,58988.0,0.65611248]
[1723675204135,0.16,58989.0,58988.0,0.74033907]
[1723675204347,0.16,58989.0,58988.0,1.24920802]
[1723675204548,0.16,58989.0,58988.0,1.64920802]
[1723675204732,0.04039824,58989.0,58988.0,1.74940802]
[1723675205034,0.3608,59007.0,59003.0,0.084726]
[1723675205230,0.4716,59004.0,59003.0,0.244726]
[1723675205631,0.4716,59004.0,59003.0,0.16]
[1723675205835,0.556325,59004.0,59003.0,0.16]
[1723675206340,0.570325,59004.0,59003.0,0.16]
[1723675206643,0.570325,59004.0,59002.0,0.3608]
[1723675206830,0.2033,59003.0,58998.0,0.00025421]
[1723675207031,0.169464,58999.0,58998.0,0.00025421]
[1723675207238,0.309464,58999.0,58998.0,0.00025421]
[1723675207438,0.084743,58991.0,58990.0,0.05064986]
[1723675207733,0.084746,58989.0,58988.0,0.41144986]
[1723675207931,0.084746,58989.0,58988.0,0.3608]
[1723675207932,0.524792,58989.0,58988.0,0.3608]
[1723675208126,1.033352,58989.0,58988.0,0.3608]
[1723675208329,1.033352,58989.0,58983.0,0.41144986]
[1723675208526,0.084754,58984.0,58983.0,0.08500921]
[1723675208740,0.15,58984.0,58983.0,0.44580921]
[1723675208928,0.15,58984.0,58983.0,0.73809736]
[1723675209129,0.15,58984.0,58983.0,0.44580921]
[1723675209533,0.15,58984.0,58983.0,0.65337008]
[1723675209940,0.152,58984.0,58983.0,0.65937008]
[1723675210240,0.152,58984.0,58983.0,0.6593648]
[1723675211245,0.152,58984.0,58983.0,0.59180921]
[1723675214142,0.152,58984.0,58983.0,0.60187582]
[1723675214644,0.152,58984.0,58983.0,0.65936469]
[1723675215036,0.152,58984.0,58983.0,0.59180921]
[1723675215534,0.152,58984.0,58983.0,0.65936469]
[1723675216338,0.152,58984.0,58983.0,0.59180921]
[1723675216737,0.15174579,58984.0,58983.0,0.76098065]
[1723675216941,0.15174579,58984.0,58983.0,0.74436682]
[1723675217345,0.15174579,58984.0,58983.0,0.84566655]
[1723675217543,0.15174579,58984.0,58983.0,0.76091155]
[1723675217937,0.15174579,58984.0,58983.0,0.65961182]
[1723675218548,0.15174579,58984.0,58983.0,0.7441344]
[1723675219140,0.15174579,58984.0,58983.0,0.74413585]
[1723675220538,0.15174579,58984.0,58983.0,0.00625421]
[1723675220740,1.13804653,58984.0,58978.0,0.06780958]
[1723675220941,0.3608,58979.0,58972.0,0.06766726]
[1723675221142,0.3608,58979.0,58965.0,0.05076035]
[1723675221143,0.084779,58966.0,58965.0,0.05076035]
[1723675221346,0.59532479,58966.0,58963.0,0.084784]
[1723675221551,0.084781,58965.0,58963.0,0.084784]
[1723675221756,0.14,58965.0,58963.0,0.084784]
[1723675222049,0.00017897,58964.0,58963.0,0.084784]
[1723675222245,0.14017897,58964.0,58963.0,0.084784]